[Event "Silicon Valley Fall op"]
[Site "Sunnyvale USA"]
[Date "2023.09.04"]
[Round "8.9"]
[White "Gedajlovic, Max"]
[Black "Mikaelyan, Arman"]
[Result "1/2-1/2"]
[ECO "A50"]
[WhiteElo "2403"]
[BlackElo "2529"]
[PlyCount "68"]
[EventDate "2023.08.31"]
[EventType "swiss"]
[EventRounds "9"]
[EventCountry "USA"]
[Source "ChessMix"]
[SourceDate "2023.09.10"]
[TimeControl "5400+30"]

1. d4 {[%emt 0:02:27]} Nf6 {[%emt 0:07:10]} 2. c4 {[%emt 0:00:05]} e6 {
[%emt 0:00:08]} 3. Bf4 {[%emt 0:00:16]} d5 {[%emt 0:08:16]} 4. cxd5 {
[%emt 0:00:11]} exd5 {[%emt 0:02:09]} 5. e3 {[%emt 0:03:02]} Bb4+ {
[%emt 0:05:32]} 6. Nc3 {[%emt 0:00:47]} O-O {[%emt 0:02:32]} 7. Bd3 {
[%emt 0:00:32]} c5 {[%emt 0:00:42]} 8. dxc5 {[%emt 0:05:06]} Nbd7 {
[%emt 0:05:51]} 9. Nge2 {[%emt 0:02:11]} Nxc5 {[%emt 0:00:30]} 10. Bc2 {
[%emt 0:05:10]} b6 {[%emt 0:01:19]} 11. O-O {[%emt 0:03:13]} Ba6 {
[%emt 0:00:34]} 12. Na4 {[%emt 0:06:35]} Nxa4 {[%emt 0:11:17]} 13. Bxa4 {
[%emt 0:00:13]} d4 {[%emt 0:00:20]} 14. a3 {[%emt 0:13:39]} Bd6 {[%emt 0:09:52]
} 15. Re1 {[%emt 0:08:59]} dxe3 {[%emt 0:03:32]} 16. fxe3 {[%emt 0:02:14]} Bxf4
{[%emt 0:01:20]} 17. exf4 {[%emt 0:00:57]} Qe7 {[%emt 0:01:22]} 18. Nd4 {
[%emt 0:05:10]} Qd6 {[%emt 0:00:27]} 19. Qd2 {[%emt 0:04:13]} Rad8 {
[%emt 0:03:09]} 20. Rad1 {[%emt 0:00:23]} Nh5 {[%emt 0:01:40]} 21. Re5 {
[%emt 0:02:11]} g6 {[%emt 0:03:34]} 22. Qe3 {[%emt 0:02:30]} Qf6 {
[%emt 0:05:07]} 23. g3 {[%emt 0:01:11]} Ng7 {[%emt 0:02:14]} 24. b4 {
[%emt 0:04:02]} Rd6 {[%emt 0:01:53]} 25. Rc1 {[%emt 0:03:18]} Bb7 {
[%emt 0:01:59]} 26. Nb5 {[%emt 0:05:28]} Rc6 {[%emt 0:03:35]} 27. Nxa7 {
[%emt 0:01:46]} Rxc1+ {[%emt 0:00:15]} 28. Qxc1 {[%emt 0:00:02]} Qd8 {
[%emt 0:02:08]} 29. Nc6 {[%emt 0:02:44]} Bxc6 {[%emt 0:01:45]} 30. Bxc6 {
[%emt 0:00:24]} Qd4+ {[%emt 0:00:10]} 31. Qe3 {[%emt 0:01:45]} Qd1+ {
[%emt 0:01:10]} 32. Qe1 {[%emt 0:00:14]} Qd4+ {[%emt 0:01:06]} 33. Qe3 {
[%emt 0:00:12]} Qd1+ {[%emt 0:00:43]} 34. Qe1 {[%emt 0:00:08]} Qd4+ {
[%emt 0:00:08]} 1/2-1/2

[Event "Silicon Valley Fall op"]
[Site "Sunnyvale USA"]
[Date "2023.09.04"]
[Round "9.7"]
[White "Antipov, Mikhail Al"]
[Black "Gedajlovic, Max"]
[Result "1-0"]
[ECO "C55"]
[WhiteElo "2600"]
[BlackElo "2403"]
[PlyCount "71"]
[EventDate "2023.08.31"]
[EventType "swiss"]
[EventRounds "9"]
[EventCountry "USA"]
[Source "ChessMix"]
[SourceDate "2023.09.10"]
[TimeControl "5400+30"]

1. e4 {[%emt 0:00:06]} e5 {[%emt 0:00:07]} 2. Nf3 {[%emt 0:00:09]} Nc6 {
[%emt 0:00:30]} 3. Bc4 {[%emt 0:00:30]} Nf6 {[%emt 0:00:30]} 4. d3 {
[%emt 0:00:30]} h6 {[%emt 0:00:30]} 5. h3 {[%emt 0:00:30]} d6 {[%emt 0:00:00]}
6. a4 {[%emt 0:00:30]} g6 {[%emt 0:00:00]} 7. Nc3 {[%emt 0:00:30]} Bg7 {
[%emt 0:01:30]} 8. a5 {[%emt 0:00:30]} a6 {[%emt 0:00:00]} 9. O-O {
[%emt 0:00:30]} O-O {[%emt 0:00:00]} 10. Re1 {[%emt 0:45:56]} Kh7 {
[%emt 0:00:00]} 11. Be3 {[%emt 0:46:19]} Be6 {[%emt 0:04:06]} 12. Bxe6 {
[%emt 0:00:30]} fxe6 {[%emt 0:00:09]} 13. Ne2 {[%emt 0:00:00]} Nh5 {
[%emt 0:13:03]} 14. c3 {[%emt 0:00:00]} Qd7 {[%emt 0:00:30]} 15. Ng3 {
[%emt 0:00:00]} Nxg3 {[%emt 0:00:30]} 16. fxg3 {[%emt 0:00:00]} Ne7 {
[%emt 0:00:30]} 17. b4 {[%emt 0:00:00]} Rfb8 {[%emt 0:07:28]} 18. g4 {
[%emt 0:00:00]} b5 {[%emt 0:02:48]} 19. g5 {[%emt 0:00:00]} h5 {[%emt 0:00:30]}
20. Ra2 {[%emt 0:00:00]} d5 {[%emt 0:08:28]} 21. Bc5 {[%emt 0:00:00]} Nc6 {
[%emt 0:00:30]} 22. Rf2 {[%emt 0:00:00]} d4 {[%emt 0:59:51]} 23. c4 {
[%emt 0:05:30]} bxc4 {[%emt 0:00:00]} 24. Ref1 {[%emt 0:00:30]} Qd8 {
[%emt 0:00:00]} 25. dxc4 {[%emt 0:00:00]} Nxb4 {[%emt 0:00:00]} 26. Qd2 {
[%emt 0:00:00]} Nc6 {[%emt 0:00:00]} 27. Nh4 {[%emt 0:00:00]} Qe8 {
[%emt 0:00:00]} 28. Rf7 {[%emt 0:00:00]} Nd8 {[%emt 0:00:00]} 29. Re7 {
[%emt 0:00:00]} Qc6 {[%emt 0:00:00]} 30. Qf2 {[%emt 0:00:00]} Qxc5 {
[%emt 0:00:00]} 31. Rxg7+ {[%emt 0:00:00]} Kxg7 {[%emt 0:00:00]} 32. Qf6+ {
[%emt 0:00:00]} Kh7 {[%emt 0:00:00]} 33. Qxg6+ {[%emt 0:00:00]} Kh8 {
[%emt 0:00:00]} 34. Qh6+ {[%emt 0:00:00]} Kg8 {[%emt 0:00:00]} 35. g6 {
[%emt 0:00:00]} d3+ {[%emt 0:00:00]} 36. Kh2 {[%emt 0:00:00]} 1-0

[Event "US Masters"]
[Site "Charlotte USA"]
[Date "2023.11.24"]
[Round "4.17"]
[White "Rodrigue-Lemieux, Shawn"]
[Black "Gedajlovic, Max"]
[Result "1-0"]
[ECO "A21"]
[WhiteElo "2492"]
[BlackElo "2407"]
[PlyCount "63"]
[EventDate "2023.11.24"]
[EventType "swiss"]
[EventRounds "9"]
[EventCountry "USA"]
[Source "ChessMix"]
[SourceDate "2023.12.01"]
[TimeControl "5400+30"]

1. c4 {[%emt 0:09:43]} e5 {[%emt 0:00:34]} 2. Nc3 {[%emt 0:00:31]} Bb4 {
[%emt 0:00:56]} 3. Nd5 {[%emt 0:01:07]} a5 {[%emt 0:02:14]} 4. e3 {
[%emt 0:02:10]} Nf6 {[%emt 0:01:10]} 5. Nf3 {[%emt 0:14:39]} Nxd5 {
[%emt 0:20:19]} 6. cxd5 {[%emt 0:00:09]} Qe7 {[%emt 0:00:10]} 7. a3 {
[%emt 0:01:56]} Bd6 {[%emt 0:02:12]} 8. e4 {[%emt 0:05:41]} c6 {[%emt 0:03:38]}
9. d4 {[%emt 0:04:51]} exd4 {[%emt 0:10:23]} 10. Qxd4 {[%emt 0:00:32]} f6 {
[%emt 0:00:17]} 11. Be3 {[%emt 0:02:19]} Na6 {[%emt 0:05:15]} 12. Rc1 {
[%emt 0:02:01]} O-O {[%emt 0:05:24]} 13. Bd3 {[%emt 0:01:17]} c5 {
[%emt 0:09:36]} 14. Qc3 {[%emt 0:02:13]} b6 {[%emt 0:01:13]} 15. O-O {
[%emt 0:00:34]} Nc7 {[%emt 0:01:04]} 16. Rfe1 {[%emt 0:02:21]} a4 {
[%emt 0:02:26]} 17. Qc2 {[%emt 0:04:33]} Ba6 {[%emt 0:10:38]} 18. e5 {
[%emt 0:01:17]} Bxd3 {[%emt 0:00:41]} 19. exd6 {[%emt 0:02:00]} Qe4 {
[%emt 0:00:42]} 20. Qd1 {[%emt 0:07:10]} Na6 {[%emt 0:08:22]} 21. Bxc5 {
[%emt 0:01:53]} Qxd5 {[%emt 0:00:02]} 22. Bxb6 {[%emt 0:00:43]} Rfb8 {
[%emt 0:01:54]} 23. Bc7 {[%emt 0:02:26]} Rxb2 {[%emt 0:01:13]} 24. Qxa4 {
[%emt 0:00:53]} Bf5 {[%emt 0:07:40]} 25. Qd4 {[%emt 0:03:47]} Qb7 {
[%emt 0:02:36]} 26. h3 {[%emt 0:02:37]} Rb5 {[%emt 0:00:49]} 27. Qc4+ {
[%emt 0:04:38]} Be6 {[%emt 0:00:18]} 28. Rxe6 {[%emt 0:01:04]} dxe6 {
[%emt 0:00:01]} 29. Qxe6+ {[%emt 0:00:09]} Kh8 {[%emt 0:00:48]} 30. d7 {
[%emt 0:01:19]} Nxc7 {[%emt 0:02:15]} 31. Rxc7 {[%emt 0:00:09]} Rb1+ {
[%emt 0:00:29]} 32. Ne1 {[%emt 0:00:06]} 1-0